fUSD/lending_fUSD_20240220
["ID","MTS","AMOUNT","RATE_DAILY","PERIOD"]
[314572573,1708428724099,-171.23978354,0.00040155,3]
[314572574,1708428724109,-150.0,0.00040155,3]
[314572575,1708428724118,-171.23978354,0.00040155,3]
[314572576,1708428724129,-150.0,0.00040155,3]
[314572577,1708428724139,-171.23978354,0.00040155,3]
[314572578,1708428724149,-150.0,0.00040155,3]
[314572579,1708428724158,-171.23978354,0.00040155,3]
[314572580,1708428724169,-171.23978354,0.00040155,3]
[314572581,1708428724178,-150.0,0.00040155,3]
[314572582,1708428724187,-171.23978354,0.00040155,3]
[314572583,1708428724196,-150.0,0.00040155,3]
[314572584,1708428724205,-171.23978354,0.00040155,3]
[314572585,1708428724215,-150.0,0.00040155,3]
[314572586,1708428724224,-171.23978354,0.00040155,3]
[314572587,1708428724233,-171.23978354,0.00040155,3]
[314572588,1708428724242,-171.23978354,0.00040155,3]
[314572589,1708428724251,-150.0,0.00040155,3]
[314572590,1708428724261,-150.0,0.00040155,3]
[314572591,1708428724271,-150.0,0.00040155,3]
[314572592,1708428724280,-28288.25613763,0.0004017,13]
[314572593,1708428724290,-26786.99425116,0.0004017,14]
[314572594,1708428724299,-500.0,0.00040183,2]
[314572595,1708428724308,-157.0212031,0.00040198,14]
[314572596,1708428724317,-171.23978354,0.00040199,3]
[314572597,1708428724327,-150.0,0.00040199,3]
[314572598,1708428724336,-460000.0,0.000402,2]
[314572599,1708428724345,-623.77,0.00040202,2]
[314572600,1708428724355,-154.01270854,0.00040227,7]
[314572601,1708428724364,-153.0,0.00040248,7]
[314572602,1708428724374,-641.09,0.00040273,2]
[314572603,1708428724384,-500.0,0.00040273,6]
[314572604,1708428724393,-554.66296008,0.00040273,6]
[314572605,1708428724403,-512.86,0.00040273,6]
[314572606,1708428724413,-500.0,0.00040273,6]
[314572607,1708428724422,-500.0,0.00040273,6]
[314572608,1708428724432,-1116.86,0.00040273,2]
[314572609,1708428724442,-962.0,0.00040273,2]
[314572610,1708428724452,-420.29373913,0.00040273,6]
[314572611,1708428724462,-1157.69,0.00040273,6]
[314572612,1708428724471,-500.0,0.00040273,6]
[314572613,1708428724481,-500.0,0.00040273,6]
[314572614,1708428724490,-632.15,0.00040273,6]
[314572615,1708428724499,-500.0,0.00040273,6]
[314572616,1708428724508,-500.0,0.00040273,6]
[314572617,1708428724518,-325.93467581,0.00040273,6]
[314572618,1708428724527,-565.54,0.00040273,6]
[314572619,1708428724537,-507.0,0.00040273,6]
[314572620,1708428724546,-298.06671028,0.00040273,6]
[314572621,1708428724556,-500.0,0.00040273,6]
[314572622,1708428724566,-417.65066433,0.00040273,6]
[314572623,1708428724576,-500.0,0.00040273,6]
[314572624,1708428724585,-507.42,0.00040273,6]
[314572625,1708428724594,-799.18,0.00040273,6]
[314572626,1708428724604,-521.8,0.00040273,6]
[314572627,1708428724613,-157.38,0.00040273,6]
[314572628,1708428724624,-500.0,0.00040273,6]
[314572629,1708428724633,-500.0,0.00040273,6]
[314572630,1708428724643,-506.62,0.00040273,6]
[314572631,1708428724654,-500.0,0.00040273,6]
[314572632,1708428724837,-878.5,0.00040273,6]
[314572633,1708428724847,-590.31,0.00040273,6]
[314572634,1708428724857,-649.42,0.00040273,6]
[314572635,1708428724867,-500.0,0.00040273,6]
[314572636,1708428724881,-657.53,0.00040273,6]
[314572637,1708428724891,-561.53,0.00040273,6]
[314572638,1708428724900,-510.94,0.00040273,6]
[314572639,1708428724910,-2751.38,0.00040273,6]
[314572640,1708428724920,-537.42,0.00040273,6]
[314572641,1708428724929,-500.0,0.00040273,6]
[314572642,1708428724939,-1597.23,0.00040273,6]
[314572643,1708428724948,-500.0,0.00040273,6]
[314572644,1708428724958,-1371.89,0.00040273,6]
[314572645,1708428724967,-639.83,0.00040273,6]
[314572646,1708428724977,-500.0,0.00040273,6]
[314572647,1708428724987,-2100.88,0.00040273,6]
[314572648,1708428724996,-1430.51,0.00040273,6]
[314572649,1708428725006,-500.0,0.00040273,6]
[314572650,1708428725016,-519.67,0.00040273,6]
[314572651,1708428725027,-500.0,0.00040273,6]
[314572652,1708428725037,-661.83,0.00040273,6]
[314572653,1708428725046,-1640.57,0.00040273,6]
[314572654,1708428725055,-1385.07,0.00040273,6]
[314572655,1708428725065,-516.63,0.00040273,6]
[314572656,1708428725075,-500.0,0.00040273,6]
[314572657,1708428725085,-2406.39,0.00040273,6]
[314572658,1708428725094,-1286.92,0.00040273,6]
[314572659,1708428725103,-1144.29,0.00040273,6]
[314572660,1708428725113,-755.77,0.00040273,6]
[314572661,1708428725124,-538.32,0.00040273,6]
[314572662,1708428725134,-2001.39,0.00040273,6]
[314572663,1708428725143,-500.0,0.00040273,6]
[314572664,1708428725153,-1514.61,0.00040273,6]
[314572665,1708428725162,-500.0,0.00040273,6]
[314572666,1708428725172,-841.62,0.00040273,6]
[314572667,1708428725183,-896.66,0.00040273,2]
[314572668,1708428725193,-955.19,0.00040273,6]
[314572669,1708428725203,-1219.95,0.00040273,6]
[314572670,1708428725213,-759.4,0.00040273,6]
[314572671,1708428725223,-4914.38,0.00040273,6]
[314572672,1708428725232,-1960.91,0.00040273,6]
[314572673,1708428725242,-1232.52,0.00040273,6]
[314572674,1708428725252,-632.25,0.00040273,6]
[314572675,1708428725262,-2283.84,0.00040273,6]
[314572676,1708428725271,-2168.59,0.00040273,6]
[314572677,1708428725281,-20540.21,0.00040273,6]
[314572678,1708428725290,-500.0,0.00040273,6]
[314572679,1708428725299,-7298.9,0.00040273,6]
[314572680,1708428725309,-2164.58,0.00040273,6]
[314572681,1708428725319,-500.0,0.00040273,6]
[314572682,1708428725328,-840.87,0.00040273,6]
[314572683,1708428725338,-750.12,0.00040273,6]
[314572684,1708428725348,-881.59,0.00040273,6]
[314572685,1708428725358,-1166.03,0.00040273,6]
[314572686,1708428725368,-501.87,0.00040273,6]
[314572687,1708428725380,-4997.98,0.00040273,6]
[314572688,1708428725389,-880.32,0.00040273,6]
[314572689,1708428725399,-500.0,0.00040273,6]
[314572690,1708428725408,-690.76,0.00040273,6]
[314572691,1708428725417,-1448.63,0.00040273,6]
[314572692,1708428725427,-905.43,0.00040273,6]
[314572693,1708428725436,-500.0,0.00040273,6]
[314572694,1708428725445,-1005.05,0.00040273,6]
[314572695,1708428725455,-3198.4,0.00040273,6]
[314572696,1708428725464,-759.38,0.00040273,6]
[314572697,1708428725474,-500.0,0.00040273,6]
[314572698,1708428725483,-1446.16,0.00040273,6]
[314572699,1708428725493,-649.83,0.00040273,6]
[314572700,1708428725503,-1827.29,0.00040273,6]
[314572701,1708428725512,-622.17,0.00040273,6]
[314572702,1708428725522,-838.08,0.00040273,6]
[314572703,1708428725533,-678.18,0.00040273,6]
[314572704,1708428725543,-727.92,0.00040273,6]
[314572705,1708428725552,-907.49,0.00040273,6]
[314572706,1708428725562,-6265.46,0.00040273,6]
[314572707,1708428725571,-859.39,0.00040273,6]
[314572708,1708428725581,-866.49,0.00040273,6]
[314572709,1708428725590,-3587.46,0.00040273,6]
[314572710,1708428725600,-1001.76,0.00040273,6]
[314572711,1708428725610,-600.49,0.00040273,6]
[314572712,1708428725619,-737.98,0.00040273,6]
[314572713,1708428725631,-1615.46,0.00040273,6]
[314572714,1708428725640,-3233.84,0.00040273,6]
[314572715,1708428725650,-2658.71,0.00040273,6]
[314572716,1708428725660,-804.08,0.00040273,6]
[314572717,1708428725672,-759.27,0.00040273,6]
[314572718,1708428725682,-630.92695539,0.00040273,6]
[314572719,1708428725691,-1025.73,0.00040273,6]
[314572720,1708428725701,-1374.99,0.00040273,6]
[314572721,1708428725711,-654.59,0.00040273,6]
[314572722,1708428725721,-633.58,0.00040273,6]
[314572723,1708428725730,-720.34,0.00040273,6]
[314572724,1708428725740,-1574.12,0.00040273,6]
[314572725,1708428725749,-750.78,0.00040273,6]
[314572726,1708428725761,-552.85,0.00040273,6]
[314572727,1708428725772,-1149.16,0.00040273,6]
[314572728,1708428725782,-810.09,0.00040273,6]
[314572729,1708428725792,-2476.69,0.00040273,6]
[314572730,1708428725802,-1155.56,0.00040273,6]
[314572731,1708428725811,-1254.68,0.00040273,6]
[314572732,1708428725822,-1124.17,0.00040273,6]
[314572733,1708428725832,-1076.93,0.00040273,6]
[314572734,1708428725841,-590.14,0.00040273,6]
[314572735,1708428725851,-768.15,0.00040273,6]
[314572736,1708428725861,-621.95,0.00040273,6]
[314572737,1708428725870,-1180.17,0.00040273,6]
[314572738,1708428725881,-939.54,0.00040273,6]
[314572739,1708428725891,-939.56,0.00040273,6]
[314572740,1708428725900,-1613.29,0.00040273,6]
[314572741,1708428725909,-686.66,0.00040273,6]
[314572742,1708428725918,-840.36,0.00040273,6]
[314572743,1708428725927,-640.13,0.00040273,6]
[314572744,1708428725936,-3991.12,0.00040273,6]
[314572745,1708428725946,-520.0,0.00040273,6]
[314572746,1708428725956,-1023.38,0.00040273,6]
[314572747,1708428725966,-692.3,0.00040273,6]
[314572748,1708428725975,-1621.7,0.00040273,6]
[314572749,1708428725984,-2486.09,0.00040273,6]
[314572750,1708428725993,-8295.38,0.00040273,6]
[314572751,1708428726003,-841.07,0.00040273,6]
[314572752,1708428726011,-1744.2,0.00040273,6]
[314572753,1708428726021,-1344.84,0.00040273,6]
[314572754,1708428726030,-673.36,0.00040273,6]
[314572755,1708428726039,-500.0,0.00040273,6]
[314572756,1708428726049,-685.99,0.00040273,6]
[314572757,1708428726058,-500.0,0.00040273,6]
[314572758,1708428726067,-1329.24,0.00040273,6]
[314572759,1708428726076,-2449.79,0.00040273,6]
[314572760,1708428726086,-856.56,0.00040273,6]
[314572761,1708428726096,-500.0,0.00040273,6]
[314572762,1708428726106,-559.34,0.00040273,6]
[314572763,1708428726116,-500.0,0.00040273,6]
[314572764,1708428726127,-504.39,0.00040273,6]
[314572765,1708428726137,-500.0,0.00040273,6]
[314572766,1708428726147,-771.78,0.00040273,6]
[314572767,1708428726157,-500.0,0.00040273,6]
[314572768,1708428726167,-500.0,0.00040273,6]
[314572769,1708428726177,-682.05,0.00040273,6]
[314572770,1708428726186,-547.61,0.00040273,6]
[314572771,1708428726196,-1060.07,0.00040273,6]
[314572772,1708428726205,-828.05,0.00040273,6]
[314572773,1708428726215,-628.37,0.00040273,6]
[314572774,1708428726224,-887.17,0.00040273,6]
[314572775,1708428726234,-673.43,0.00040273,6]
[314572776,1708428726243,-734.03,0.00040273,2]
[314572777,1708428726253,-1738.82,0.00040273,6]
[314572778,1708428726262,-467.84109282,0.00040273,6]
[314572779,1708428726271,-779.08,0.00040273,6]
[314572780,1708428726281,-543.22,0.00040273,6]
[314572781,1708428726290,-1012.35,0.00040273,6]
[314572782,1708428726300,-807.34,0.00040273,6]
[314572783,1708428726310,-684.48,0.00040273,6]
[314572784,1708428726320,-1647.99,0.00040273,6]
[314572785,1708428726330,-986.67,0.00040273,6]
[314572786,1708428726340,-2456.88,0.00040273,6]
[314572787,1708428726351,-1042.87,0.00040273,6]
[314572788,1708428726360,-1470.47,0.00040273,6]
[314572789,1708428726370,-2585.94,0.00040273,6]
[314572790,1708428726381,-320.0,0.00040368,2]
[314572791,1708428726392,-2859.22,0.00040369,6]
[314572792,1708428726401,-1223.88,0.00040369,6]
[314572793,1708428726410,-210.77399424,0.00040371,10]
[314572794,1708428726420,-153.0,0.00040385,7]
[314572795,1708428726429,-36190.84,0.000404,7]
[314572796,1708428726439,-1000.0,0.00040441,10]
[314572797,1708428726449,-1000.0,0.00040448,10]
[314572798,1708428726458,-1000.0,0.00040448,10]
[314572799,1708428726467,-1000.0,0.00040448,10]
[314572800,1708428726477,-1000.0,0.00040448,10]
[314572801,1708428726486,-31421.83144412,0.00040497,2]
[314572802,1708428726496,-157.0212031,0.00040498,14]
[314572803,1708428726505,-3000.0,0.000405,2]
[314572804,1708428726515,-57038.05,0.000405,7]
[314572805,1708428726525,-11887.8581159,0.00040503,2]
[314572806,1708428726535,-151.02416817,0.00040515,30]
[314572807,1708428726545,-603.28,0.00040517,2]
[314572808,1708428726555,-1000.0,0.00040523,10]
[314572809,1708428726565,-1000.0,0.00040523,10]
[314572810,1708428726575,-1000.0,0.00040523,10]
[314572811,1708428726585,-171.23978354,0.0004053,3]
[314572812,1708428726595,-150.0,0.0004053,3]
[314572813,1708428726604,-725364.42484265,0.00040531,7]
[314572814,1708428726614,-13686.11700492,0.00040531,7]
[314572815,1708428726623,-7832.97119971,0.00040531,4]
[314572816,1708428726632,-10467.83248196,0.00040531,10]
[314572817,1708428726642,-162.1979869,0.00040531,7]
[314572818,1708428726655,-176.2812072,0.00040531,2]
[314572819,1708428726665,-172.51163113,0.00040531,7]
[314572820,1708428726674,-209.1199195,0.00040531,2]
[314572821,1708428726684,-9230.0,0.00040531,8]
[314572822,1708428726694,-5905.62674238,0.00040531,2]
[314572823,1708428726704,-200.0,0.00040531,2]
[314572824,1708428726714,-555.0,0.00040531,2]
[314572825,1708428726723,-3897.0582,0.00040531,7]
[314572826,1708428726733,-351.77094909,0.00040531,16]
[314572827,1708428726743,-40001.15250805,0.00040531,2]
[314572828,1708428726754,-9629.0,0.00040531,7]
[314572829,1708428726763,-150.0,0.00040531,10]
[314572830,1708428726773,-5227.65775944,0.00040531,4]
[314572831,1708428726783,-23650.91196857,0.00040531,2]
[314572832,1708428726792,-199101.02110981,0.00040531,7]
[314572833,1708428726803,-555.0,0.00040531,2]
[314572834,1708428726813,-10000.0,0.00040531,25]
[314572835,1708428726823,-10000.0,0.00040531,15]
[314572836,1708428726832,-4562.77863237,0.00040531,7]
[314572837,1708428726842,-3012.80577765,0.00040531,2]
[314572838,1708428726851,-1281.89573,0.00040531,2]
[314572839,1708428726861,-1000.0,0.00040531,30]
[314572840,1708428726873,-1279.0,0.00040531,120]
[314572841,1708428726883,-346.31742418,0.00040531,120]
[314572842,1708428726893,-887.61010259,0.00040531,120]
[314572843,1708428726902,-641.09,0.00040547,2]
[314572844,1708428726912,-500.0,0.00040547,6]
[314572845,1708428726922,-1005.16694208,0.00040547,2]
[314572846,1708428726931,-512.86,0.00040547,6]
[314572847,1708428726941,-500.0,0.00040547,6]
[314572848,1708428726951,-529.8228709,0.00040547,6]
[314572849,1708428726960,-1116.86,0.00040547,2]
[314572850,1708428726969,-962.0,0.00040547,2]
[314572851,1708428726978,-1157.69,0.00040547,6]
[314572852,1708428726987,-500.0,0.00040547,6]
[314572853,1708428726997,-632.15,0.00040547,6]
[314572854,1708428727007,-500.0,0.00040547,6]
[314572855,1708428727018,-500.0,0.00040547,6]
[314572856,1708428727028,-213.45210006,0.00040547,6]
[314572857,1708428727038,-565.54,0.00040547,6]
[314572858,1708428727047,-507.0,0.00040547,6]
[314572859,1708428727057,-575.17950805,0.00040547,6]
[314572860,1708428727067,-500.0,0.00040547,6]
[314572861,1708428727077,-507.42,0.00040547,6]
[314572862,1708428727086,-799.18,0.00040547,6]
[314572863,1708428727095,-521.8,0.00040547,6]
[314572864,1708428727105,-157.38,0.00040547,6]
[314572865,1708428727114,-389.97769492,0.00040547,6]
[314572866,1708428727124,-408.71321239,0.00040547,6]
[314572867,1708428727133,-506.62,0.00040547,6]
[314572868,1708428727143,-500.0,0.00040547,6]
[314572869,1708428727152,-878.5,0.00040547,6]
[314572870,1708428727162,-590.31,0.00040547,6]
[314572871,1708428727172,-649.42,0.00040547,6]
[314572872,1708428727182,-500.0,0.00040547,6]
[314572873,1708428727192,-657.53,0.00040547,6]
[314572874,1708428727201,-561.53,0.00040547,6]
[314572875,1708428727211,-510.94,0.00040547,6]
[314572876,1708428727221,-2751.38,0.00040547,6]
[314572877,1708428727230,-537.42,0.00040547,6]
[314572878,1708428727240,-340.70198064,0.00040547,6]
[314572879,1708428727250,-1597.23,0.00040547,6]
[314572880,1708428727259,-500.0,0.00040547,6]
[314572881,1708428727269,-1371.89,0.00040547,6]
[314572882,1708428727278,-639.83,0.00040547,6]
[314572883,1708428727287,-561.17160654,0.00040547,6]
[314572884,1708428727297,-2100.88,0.00040547,6]
[314572885,1708428727306,-1430.51,0.00040547,6]
[314572886,1708428727315,-324.94305458,0.00040547,6]
[314572887,1708428727325,-519.67,0.00040547,6]
[314572888,1708428727334,-500.0,0.00040547,6]
[314572889,1708428727343,-661.83,0.00040547,6]
[314572890,1708428727352,-1640.57,0.00040547,6]
[314572891,1708428727361,-1385.07,0.00040547,6]
[314572892,1708428727370,-516.63,0.00040547,6]
[314572893,1708428727382,-500.0,0.00040547,6]
[314572894,1708428727391,-2406.39,0.00040547,6]
[314572895,1708428727400,-1286.92,0.00040547,6]
[314572896,1708428727409,-1144.29,0.00040547,6]
[314572897,1708428727419,-755.77,0.00040547,6]
[314572898,1708428727429,-538.32,0.00040547,6]
[314572899,1708428727438,-2001.39,0.00040547,6]
[314572900,1708428727447,-295.0290528,0.00040547,6]
[314572901,1708428727456,-1514.61,0.00040547,6]
[314572902,1708428727465,-500.0,0.00040547,6]
[314572903,1708428727474,-841.62,0.00040547,6]
[314572904,1708428727485,-896.66,0.00040547,2]
[314572905,1708428727494,-955.19,0.00040547,6]
[314572906,1708428727503,-1219.95,0.00040547,6]
[314572907,1708428727512,-759.4,0.00040547,6]
[314572908,1708428727522,-4914.38,0.00040547,6]
[314572909,1708428727531,-1960.91,0.00040547,6]
[314572910,1708428727540,-1232.52,0.00040547,6]
[314572911,1708428727550,-632.25,0.00040547,6]
[314572912,1708428727559,-2283.84,0.00040547,6]
[314572913,1708428727568,-2168.59,0.00040547,6]
[314572914,1708428727577,-20540.21,0.00040547,6]
[314572915,1708428727586,-500.0,0.00040547,6]
[314572916,1708428727595,-2164.58,0.00040547,6]
[314572917,1708428727605,-7298.9,0.00040547,6]
[314572918,1708428727614,-500.0,0.00040547,6]
[314572919,1708428727625,-840.87,0.00040547,6]
[314572920,1708428727634,-881.59,0.00040547,6]
[314572921,1708428727644,-750.12,0.00040547,6]
[314572922,1708428727655,-1166.03,0.00040547,6]
[314572923,1708428727666,-501.87,0.00040547,6]
[314572924,1708428727677,-4997.98,0.00040547,6]
[314572925,1708428727687,-500.0,0.00040547,6]
[314572926,1708428727696,-880.32,0.00040547,6]
[314572927,1708428727707,-690.76,0.00040547,6]
[314572928,1708428727717,-1448.63,0.00040547,6]
[314572929,1708428727727,-905.43,0.00040547,6]
[314572930,1708428727736,-564.23751158,0.00040547,6]
[314572931,1708428727747,-1005.05,0.00040547,6]
[314572932,1708428727757,-3198.4,0.00040547,6]
[314572933,1708428727767,-759.38,0.00040547,6]
[314572934,1708428727777,-500.0,0.00040547,6]
[314572935,1708428727787,-1446.16,0.00040547,6]
[314572936,1708428727797,-649.83,0.00040547,6]
[314572937,1708428727807,-1827.29,0.00040547,6]
[314572938,1708428727817,-622.17,0.00040547,6]
[314572939,1708428727827,-838.08,0.00040547,6]
[314572940,1708428727837,-678.18,0.00040547,6]
[314572941,1708428727847,-727.92,0.00040547,6]
[314572942,1708428727857,-907.49,0.00040547,6]
[314572943,1708428727867,-6265.46,0.00040547,6]
[314572944,1708428727878,-859.39,0.00040547,6]
[314572945,1708428727887,-866.49,0.00040547,6]
[314572946,1708428727896,-3587.46,0.00040547,6]
[314572947,1708428727906,-1001.76,0.00040547,6]
[314572948,1708428727915,-600.49,0.00040547,6]
[314572949,1708428727924,-737.98,0.00040547,6]
[314572950,1708428727934,-1615.46,0.00040547,6]
[314572951,1708428727943,-3233.84,0.00040547,6]
[314572952,1708428727953,-2658.71,0.00040547,6]
[314572953,1708428727962,-804.08,0.00040547,6]
[314572954,1708428727971,-759.27,0.00040547,6]
[314572955,1708428727981,-1025.73,0.00040547,6]
[314572956,1708428727990,-1374.99,0.00040547,6]
[314572957,1708428727999,-654.59,0.00040547,6]
[314572958,1708428728009,-633.58,0.00040547,6]
[314572959,1708428728019,-720.34,0.00040547,6]
[314572960,1708428728028,-1574.12,0.00040547,6]
[314572961,1708428728038,-750.78,0.00040547,6]
[314572962,1708428728047,-552.85,0.00040547,6]
[314572963,1708428728058,-1149.16,0.00040547,6]
[314572964,1708428728067,-810.09,0.00040547,6]
[314572965,1708428728076,-2476.69,0.00040547,6]
[314572966,1708428728087,-1155.56,0.00040547,6]
[314572967,1708428728097,-1254.68,0.00040547,6]
[314572968,1708428728107,-1124.17,0.00040547,6]
[314572969,1708428728117,-1076.93,0.00040547,6]
[314572970,1708428728127,-590.14,0.00040547,6]
[314572971,1708428728137,-768.15,0.00040547,6]
[314572972,1708428728146,-621.95,0.00040547,6]
[314572973,1708428728155,-1180.17,0.00040547,6]
[314572974,1708428728165,-939.54,0.00040547,6]
[314572975,1708428728175,-939.56,0.00040547,6]
[314572976,1708428728185,-1613.29,0.00040547,6]
[314572977,1708428728194,-686.66,0.00040547,6]
[314572978,1708428728203,-840.36,0.00040547,6]
[314572979,1708428728213,-640.13,0.00040547,6]
[314572980,1708428728222,-3991.12,0.00040547,6]
[314572981,1708428728232,-520.0,0.00040547,6]
[314572982,1708428728241,-1023.38,0.00040547,6]
[314572983,1708428728251,-692.3,0.00040547,6]
[314572984,1708428728261,-1621.7,0.00040547,6]
[314572985,1708428728270,-2486.09,0.00040547,6]
[314572986,1708428728280,-8295.38,0.00040547,6]
[314572987,1708428728290,-841.07,0.00040547,6]
[314572988,1708428728300,-1744.2,0.00040547,6]
[314572989,1708428728310,-1344.84,0.00040547,6]
[314572990,1708428728319,-673.36,0.00040547,6]
[314572991,1708428728329,-500.0,0.00040547,6]
[314572992,1708428728338,-685.99,0.00040547,6]
[314572993,1708428728348,-500.0,0.00040547,6]
[314572994,1708428728358,-1329.24,0.00040547,6]
[314572995,1708428728367,-2449.79,0.00040547,6]
[314572996,1708428728377,-856.56,0.00040547,6]
[314572997,1708428728386,-500.0,0.00040547,6]
[314572998,1708428728396,-559.34,0.00040547,6]
[314572999,1708428728405,-504.39,0.00040547,6]
[314573000,1708428728415,-500.0,0.00040547,6]
[314573001,1708428728425,-500.0,0.00040547,6]
[314573002,1708428728435,-771.78,0.00040547,6]
[314573003,1708428728445,-500.0,0.00040547,6]
[314573004,1708428728455,-500.0,0.00040547,6]
[314573005,1708428728465,-547.61,0.00040547,6]
[314573006,1708428728474,-682.05,0.00040547,6]
[314573007,1708428728484,-1060.07,0.00040547,6]
[314573008,1708428728493,-828.05,0.00040547,6]
[314573009,1708428728502,-628.37,0.00040547,6]
[314573010,1708428728512,-887.17,0.00040547,6]
[314573011,1708428728521,-673.43,0.00040547,6]
[314573012,1708428728531,-734.03,0.00040547,2]
[314573013,1708428728540,-1738.82,0.00040547,6]
[314573014,1708428728550,-779.08,0.00040547,6]
[314573015,1708428728559,-1012.35,0.00040547,6]
[314573016,1708428728568,-543.22,0.00040547,6]
[314573017,1708428728579,-807.34,0.00040547,6]
[314573018,1708428728588,-684.48,0.00040547,6]
[314573019,1708428728599,-1647.99,0.00040547,6]
[314573020,1708428728609,-986.67,0.00040547,6]
[314573021,1708428728618,-2456.88,0.00040547,6]
[314573022,1708428728628,-1042.87,0.00040547,6]
[314573023,1708428728638,-1470.47,0.00040547,6]
[314573024,1708428728648,-1609.8649,0.00040594,5]
[314573025,1708428728658,-2000.0,0.00040594,5]
[314573026,1708428728670,-1000.0,0.000406,15]
[314573027,1708428728680,-1000.0,0.000406,15]
[314573028,1708428728689,-300.0,0.000406,15]
[314573029,1708428728700,-166.7,0.00040637,2]
[314573030,1708428728709,-500.0,0.00040639,2]
[314573031,1708428728719,-2859.22,0.00040643,6]
[314573032,1708428728728,-1223.88,0.00040643,6]
[314573033,1708428728738,-217.368382,0.000407,13]
[314573034,1708428728748,-1992.717286,0.000407,13]
[314573035,1708428728757,-892.55,0.00040733,2]
[314573036,1708428728767,-1009.84383599,0.0004077,3]
[314573037,1708428728777,-255.07362175,0.0004079,2]
[314573038,1708428728786,-157.0212031,0.00040798,14]
[314573039,1708428728796,-154.01270854,0.00040816,9]
[314573040,1708428728805,-641.09,0.00040821,2]
[314573041,1708428728815,-500.0,0.00040821,6]
[314573042,1708428729012,-512.86,0.00040821,6]
[314573043,1708428729022,-210.4074655,0.00040821,6]
[314573044,1708428729031,-1116.86,0.00040821,2]
[314573045,1708428729041,-962.0,0.00040821,2]
[314573046,1708428729051,-1157.69,0.00040821,6]
[314573047,1708428729061,-460.71,0.00040821,6]
[314573048,1708428729071,-632.15,0.00040821,6]
[314573049,1708428729081,-452.6094239,0.00040821,6]
[314573050,1708428729090,-500.0,0.00040821,6]
[314573051,1708428729100,-565.54,0.00040821,6]
[314573052,1708428729110,-507.0,0.00040821,6]
[314573053,1708428729120,-500.0,0.00040821,6]
[314573054,1708428729131,-507.42,0.00040821,6]
[314573055,1708428729140,-799.18,0.00040821,6]
[314573056,1708428729150,-521.8,0.00040821,6]
[314573057,1708428729160,-157.38,0.00040821,6]
[314573058,1708428729169,-506.62,0.00040821,6]
[314573059,1708428729180,-500.0,0.00040821,6]
[314573060,1708428729189,-878.5,0.00040821,6]
[314573061,1708428729199,-590.31,0.00040821,6]
[314573062,1708428729208,-649.42,0.00040821,6]
[314573063,1708428729218,-275.64,0.00040821,6]
[314573064,1708428729227,-657.53,0.00040821,6]
[314573065,1708428729237,-561.53,0.00040821,6]
[314573066,1708428729246,-510.94,0.00040821,6]
[314573067,1708428729256,-2751.38,0.00040821,6]
[314573068,1708428729265,-537.42,0.00040821,6]
[314573069,1708428729275,-1597.23,0.00040821,6]
[314573070,1708428729285,-500.0,0.00040821,6]
[314573071,1708428729295,-1371.89,0.00040821,6]
[314573072,1708428729304,-639.83,0.00040821,6]